[Event "Titled Tuesday Blitz October 04 Early 2022"]
[White "Jobava, Baadur"]
[Black "Leiva, Gianmarco"]
[WhiteFideId "13601520"]
[BlackFideId "3804399"]
[WhiteElo "2582"]
[BlackElo "2285"]
[Result "1-0"]
[Round "03"]
[TimeControl "180+1"]
[Date "2022.10.04"]
[WhiteClock "0:01:58"]
[BlackClock "0:00:22"]

1. e4 {[%clk 0:03:00]}  c5 {[%clk 0:02:59]} 2. c3 {[%clk 0:03:00]}  Nf6 {[%clk 0:02:59]} 3. e5 {[%clk 0:03:01]}  Nd5 {[%clk 0:02:59]} 4. Nf3 {[%clk 0:03:02]}  d6 {[%clk 0:02:58]} 5. exd6 {[%clk 0:03:02]}  Qxd6 {[%clk 0:02:57]} 6. g3 {[%clk 0:02:59]}  Bg4 {[%clk 0:02:53]} 7. Bg2 {[%clk 0:02:59]}  Qe6+ {[%clk 0:02:52]} 8. Kf1 {[%clk 0:03:00]}  Bh3 {[%clk 0:02:51]} 9. d4 {[%clk 0:02:57]}  cxd4 {[%clk 0:02:23]} 10. Nxd4 {[%clk 0:02:50]}  Qa6+ {[%clk 0:02:22]} 11. Qe2 {[%clk 0:02:40]}  Bxg2+ {[%clk 0:02:15]} 12. Kxg2 {[%clk 0:02:40]}  Qxe2 {[%clk 0:02:16]} 13. Nxe2 {[%clk 0:02:41]}  e6 {[%clk 0:02:13]} 14. Rd1 {[%clk 0:02:41]}  Nd7 {[%clk 0:02:10]} 15. c4 {[%clk 0:02:41]}  Nb4 {[%clk 0:02:08]} 16. Nbc3 {[%clk 0:02:41]}  Rc8 {[%clk 0:01:52]} 17. b3 {[%clk 0:02:33]}  a6 {[%clk 0:01:30]} 18. Bb2 {[%clk 0:02:28]}  Be7 {[%clk 0:01:24]} 19. Ne4 {[%clk 0:02:26]}  Nf6 {[%clk 0:01:23]} 20. Nd6+ {[%clk 0:02:18]}  Bxd6 {[%clk 0:01:22]} 21. Rxd6 {[%clk 0:02:18]}  Ne4 {[%clk 0:01:07]} 22. Rb6 {[%clk 0:02:09]}  Nd3 {[%clk 0:00:27]} 23. Bxg7 {[%clk 0:02:06]}  Rg8 {[%clk 0:00:28]} 24. Bd4 {[%clk 0:02:07]}  Rc7 {[%clk 0:00:26]} 25. Rd1 {[%clk 0:02:05]}  Ndc5 {[%clk 0:00:22]} 26. f3 {[%clk 0:01:58]} 1-0


[Site "https://www.chess.com"]

[Event "Titled Tuesday Blitz October 04 Early 2022"]
[White "Kosakowski, Jakub"]
[Black "Baskakov, Egor"]
[WhiteFideId "1185080"]
[BlackFideId "24197866"]
[WhiteElo "2463"]
[BlackElo "2211"]
[Result "0-1"]
[Round "03"]
[TimeControl "180+1"]
[Date "2022.10.04"]
[WhiteClock "0:00:55"]
[BlackClock "0:01:15"]

1. d4 {[%clk 0:03:00]}  Nf6 {[%clk 0:02:59]} 2. Nf3 {[%clk 0:02:59]}  e6 {[%clk 0:02:57]} 3. Bg5 {[%clk 0:02:59]}  d5 {[%clk 0:02:58]} 4. e3 {[%clk 0:02:59]}  Be7 {[%clk 0:02:57]} 5. Bd3 {[%clk 0:02:58]}  Ne4 {[%clk 0:02:58]} 6. Bxe7 {[%clk 0:02:56]}  Qxe7 {[%clk 0:02:58]} 7. O-O {[%clk 0:02:56]}  f5 {[%clk 0:02:57]} 8. c4 {[%clk 0:02:56]}  c6 {[%clk 0:02:57]} 9. Nc3 {[%clk 0:02:45]}  O-O {[%clk 0:02:57]} 10. Ne2 {[%clk 0:02:45]}  Bd7 {[%clk 0:02:57]} 11. Ne5 {[%clk 0:02:45]}  Be8 {[%clk 0:02:57]} 12. f3 {[%clk 0:02:45]}  Nf6 {[%clk 0:02:55]} 13. Rc1 {[%clk 0:02:45]}  Nbd7 {[%clk 0:02:56]} 14. cxd5 {[%clk 0:02:42]}  Nxe5 {[%clk 0:02:55]} 15. dxe5 {[%clk 0:02:41]}  Nxd5 {[%clk 0:02:55]} 16. Qd2 {[%clk 0:02:35]}  Rd8 {[%clk 0:02:56]} 17. a3 {[%clk 0:02:33]}  Bh5 {[%clk 0:02:36]} 18. Rfd1 {[%clk 0:02:24]}  Qc7 {[%clk 0:02:35]} 19. Nf4 {[%clk 0:01:54]}  Bf7 {[%clk 0:02:20]} 20. Nxd5 {[%clk 0:01:50]}  Rxd5 {[%clk 0:02:21]} 21. f4 {[%clk 0:01:50]}  Bh5 {[%clk 0:02:19]} 22. Bc4 {[%clk 0:01:24]}  Rxd2 {[%clk 0:02:17]} 23. Rxd2 {[%clk 0:01:25]}  Bf7 {[%clk 0:02:12]} 24. Rcd1 {[%clk 0:01:23]}  Qb6 {[%clk 0:02:12]} 25. Kf2 {[%clk 0:01:23]}  a5 {[%clk 0:02:09]} 26. b3 {[%clk 0:01:22]}  Qc5 {[%clk 0:02:09]} 27. a4 {[%clk 0:01:15]}  b5 {[%clk 0:02:09]} 28. axb5 {[%clk 0:01:15]}  cxb5 {[%clk 0:02:10]} 29. Be2 {[%clk 0:01:16]}  g5 {[%clk 0:02:03]} 30. g3 {[%clk 0:01:15]}  gxf4 {[%clk 0:02:03]} 31. gxf4 {[%clk 0:01:15]}  a4 {[%clk 0:01:46]} 32. bxa4 {[%clk 0:01:06]}  bxa4 {[%clk 0:01:46]} 33. Rd7 {[%clk 0:01:05]}  a3 {[%clk 0:01:41]} 34. h4 {[%clk 0:01:01]}  Ra8 {[%clk 0:01:20]} 35. Bf3 {[%clk 0:01:00]}  Rb8 {[%clk 0:01:15]} 36. h5 {[%clk 0:00:55]}  h6 {[%clk 0:01:15]} 0-1


[Site "https://www.chess.com"]

[Event "Titled Tuesday Blitz October 04 Early 2022"]
[White "Mihajlov, Sebastian"]
[Black "Beerdsen, Thomas"]
[WhiteFideId "1512110"]
[BlackFideId "1030108"]
[WhiteElo "2464"]
[BlackElo "2567"]
[Result "0-1"]
[Round "03"]
[TimeControl "180+1"]
[Date "2022.10.04"]
[WhiteClock "0:00:04"]
[BlackClock "0:00:09"]

1. e4 {[%clk 0:02:54]}  e5 {[%clk 0:02:55]} 2. Nf3 {[%clk 0:02:54]}  Nc6 {[%clk 0:02:56]} 3. Bc4 {[%clk 0:02:54]}  Nf6 {[%clk 0:02:56]} 4. d4 {[%clk 0:02:53]}  exd4 {[%clk 0:02:55]} 5. O-O {[%clk 0:02:54]}  Nxe4 {[%clk 0:02:55]} 6. Re1 {[%clk 0:02:55]}  d5 {[%clk 0:02:55]} 7. Bxd5 {[%clk 0:02:56]}  Qxd5 {[%clk 0:02:56]} 8. Nc3 {[%clk 0:02:57]}  Qh5 {[%clk 0:02:57]} 9. Nxe4 {[%clk 0:02:56]}  Be6 {[%clk 0:02:57]} 10. Bg5 {[%clk 0:02:55]}  Bd6 {[%clk 0:02:58]} 11. Nxd6+ {[%clk 0:02:53]}  cxd6 {[%clk 0:02:59]} 12. Bf4 {[%clk 0:02:53]}  Qd5 {[%clk 0:02:59]} 13. c3 {[%clk 0:02:52]}  O-O-O {[%clk 0:02:54]} 14. Nxd4 {[%clk 0:02:50]}  Nxd4 {[%clk 0:02:54]} 15. Qxd4 {[%clk 0:02:50]}  Qxd4 {[%clk 0:02:53]} 16. cxd4 {[%clk 0:02:51]}  Kd7 {[%clk 0:02:52]} 17. d5 {[%clk 0:02:39]}  Bf5 {[%clk 0:02:51]} 18. f3 {[%clk 0:02:33]}  Rc8 {[%clk 0:02:42]} 19. Rac1 {[%clk 0:02:33]}  Rhe8 {[%clk 0:02:33]} 20. Rxe8 {[%clk 0:02:03]}  Rxe8 {[%clk 0:02:18]} 21. Kf2 {[%clk 0:01:58]}  Bd3 {[%clk 0:02:19]} 22. Be3 {[%clk 0:01:57]}  Re5 {[%clk 0:02:14]} 23. Bd4 {[%clk 0:01:45]}  Re2+ {[%clk 0:02:10]} 24. Kg3 {[%clk 0:01:45]}  g5 {[%clk 0:02:03]} 25. Bxa7 {[%clk 0:01:39]}  h5 {[%clk 0:01:44]} 26. h4 {[%clk 0:01:36]}  gxh4+ {[%clk 0:01:43]} 27. Kxh4 {[%clk 0:01:36]}  Rxb2 {[%clk 0:01:40]} 28. Bb8 {[%clk 0:01:32]}  Bg6 {[%clk 0:00:42]} 29. a4 {[%clk 0:01:13]}  Rb4+ {[%clk 0:00:38]} 30. Kg5 {[%clk 0:01:13]}  Rxa4 {[%clk 0:00:31]} 31. Rc7+ {[%clk 0:01:02]}  Kd8 {[%clk 0:00:29]} 32. Rc3 {[%clk 0:00:49]}  Rd4 {[%clk 0:00:26]} 33. Bc7+ {[%clk 0:00:27]}  Ke7 {[%clk 0:00:23]} 34. Re3+ {[%clk 0:00:21]}  Kd7 {[%clk 0:00:23]} 35. Bb8 {[%clk 0:00:20]}  Rxd5+ {[%clk 0:00:24]} 36. Kf6 {[%clk 0:00:21]}  Rf5+ {[%clk 0:00:25]} 37. Kg7 {[%clk 0:00:20]}  b5 {[%clk 0:00:19]} 38. Kf8 {[%clk 0:00:18]}  b4 {[%clk 0:00:14]} 39. Re7+ {[%clk 0:00:18]}  Kc6 {[%clk 0:00:15]} 40. Rc7+ {[%clk 0:00:18]}  Kd5 {[%clk 0:00:12]} 41. Rb7 {[%clk 0:00:16]}  Rf4 {[%clk 0:00:09]} 42. Rb6 {[%clk 0:00:16]}  Rc4 {[%clk 0:00:07]} 43. Bxd6 {[%clk 0:00:14]}  b3 {[%clk 0:00:06]} 44. Be7 {[%clk 0:00:09]}  Bc2 {[%clk 0:00:04]} 45. Kxf7 {[%clk 0:00:07]}  Rd4 {[%clk 0:00:05]} 46. Bf6 {[%clk 0:00:06]}  Rd2 {[%clk 0:00:04]} 47. Ke7 {[%clk 0:00:07]}  Rxg2 {[%clk 0:00:04]} 48. Rd6+ {[%clk 0:00:06]}  Kc5 {[%clk 0:00:05]} 49. Rd8 {[%clk 0:00:06]}  Rg3 {[%clk 0:00:05]} 50. Rc8+ {[%clk 0:00:05]}  Kd5 {[%clk 0:00:05]} 51. f4 {[%clk 0:00:06]}  Re3+ {[%clk 0:00:05]} 52. Kf7 {[%clk 0:00:05]}  Rf3 {[%clk 0:00:05]} 53. Rd8+ {[%clk 0:00:06]}  Ke4 {[%clk 0:00:05]} 54. Be5 {[%clk 0:00:07]}  h4 {[%clk 0:00:05]} 55. Rh8 {[%clk 0:00:06]}  h3 {[%clk 0:00:05]} 56. Ke6 {[%clk 0:00:06]}  Ke3 {[%clk 0:00:05]} 57. Kd6 {[%clk 0:00:05]}  Kd2 {[%clk 0:00:05]} 58. Rb8 {[%clk 0:00:05]}  h2 {[%clk 0:00:05]} 59. Rh8 {[%clk 0:00:05]}  Rf2 {[%clk 0:00:05]} 60. f5 {[%clk 0:00:06]}  Bxf5 {[%clk 0:00:04]} 61. Bxh2 {[%clk 0:00:04]}  b2 {[%clk 0:00:04]} 62. Rb8 {[%clk 0:00:02]}  b1=Q {[%clk 0:00:04]} 63. Rxb1 {[%clk 0:00:02]}  Bxb1 {[%clk 0:00:05]} 64. Bg1 {[%clk 0:00:02]}  Rf1 {[%clk 0:00:05]} 65. Bd4 {[%clk 0:00:02]}  Kd3 {[%clk 0:00:06]} 66. Kd5 {[%clk 0:00:02]}  Rf5+ {[%clk 0:00:06]} 67. Be5 {[%clk 0:00:03]}  Ba2+ {[%clk 0:00:06]} 68. Kd6 {[%clk 0:00:03]}  Ke4 {[%clk 0:00:07]} 69. Bb2 {[%clk 0:00:03]}  Rd5+ {[%clk 0:00:08]} 70. Kc6 {[%clk 0:00:03]}  Kd3 {[%clk 0:00:08]} 71. Ba3 {[%clk 0:00:03]}  Kc4 {[%clk 0:00:09]} 72. Bc5 {[%clk 0:00:04]}  Bb3 {[%clk 0:00:09]} 0-1


[Site "https://www.chess.com"]

[Event "Titled Tuesday Blitz October 04 Early 2022"]
[White "Milikow, Yoav"]
[Black "Bacrot, Etienne"]
[WhiteFideId "2822237"]
[BlackFideId "605506"]
[WhiteElo "2341"]
[BlackElo "2666"]
[Result "0-1"]
[Round "03"]
[TimeControl "180+1"]
[Date "2022.10.04"]
[WhiteClock "0:00:04"]
[BlackClock "0:00:11"]

1. d4 {[%clk 0:03:00]}  d5 {[%clk 0:02:59]} 2. c4 {[%clk 0:03:01]}  e6 {[%clk 0:02:59]} 3. Nc3 {[%clk 0:03:00]}  Be7 {[%clk 0:03:00]} 4. cxd5 {[%clk 0:03:00]}  exd5 {[%clk 0:03:00]} 5. Bf4 {[%clk 0:03:01]}  c6 {[%clk 0:03:01]} 6. e3 {[%clk 0:03:00]}  Bf5 {[%clk 0:03:01]} 7. Nge2 {[%clk 0:02:59]}  Nd7 {[%clk 0:02:59]} 8. Ng3 {[%clk 0:02:58]}  Bg6 {[%clk 0:02:59]} 9. Rc1 {[%clk 0:02:53]}  h5 {[%clk 0:02:48]} 10. h4 {[%clk 0:02:42]}  Bxh4 {[%clk 0:02:43]} 11. Qb3 {[%clk 0:02:40]}  Bxg3 {[%clk 0:02:41]} 12. Bxg3 {[%clk 0:02:40]}  Qb6 {[%clk 0:02:39]} 13. Qa3 {[%clk 0:02:32]}  Ngf6 {[%clk 0:02:21]} 14. Be2 {[%clk 0:02:08]}  a5 {[%clk 0:01:53]} 15. Bd6 {[%clk 0:02:02]}  Ne4 {[%clk 0:01:40]} 16. Nxe4 {[%clk 0:01:56]}  Bxe4 {[%clk 0:01:41]} 17. Rxh5 {[%clk 0:01:52]}  Rxh5 {[%clk 0:01:40]} 18. Bxh5 {[%clk 0:01:53]}  Bxg2 {[%clk 0:01:32]} 19. Be2 {[%clk 0:01:37]}  Be4 {[%clk 0:01:19]} 20. f3 {[%clk 0:01:36]}  Bf5 {[%clk 0:01:12]} 21. Kf2 {[%clk 0:01:36]}  f6 {[%clk 0:01:05]} 22. Bd3 {[%clk 0:01:06]}  Bxd3 {[%clk 0:01:03]} 23. Qxd3 {[%clk 0:01:07]}  O-O-O {[%clk 0:01:02]} 24. b4 {[%clk 0:01:03]}  axb4 {[%clk 0:01:01]} 25. Qb3 {[%clk 0:00:55]}  Nb8 {[%clk 0:00:56]} 26. Qxd5 {[%clk 0:00:49]}  Nd7 {[%clk 0:00:36]} 27. Qe6 {[%clk 0:00:48]}  Rh8 {[%clk 0:00:30]} 28. Bg3 {[%clk 0:00:45]}  Qa6 {[%clk 0:00:26]} 29. Qd6 {[%clk 0:00:33]}  Kd8 {[%clk 0:00:25]} 30. Qc7+ {[%clk 0:00:31]}  Ke7 {[%clk 0:00:24]} 31. Rc2 {[%clk 0:00:13]}  Rh1 {[%clk 0:00:18]} 32. Qd6+ {[%clk 0:00:10]}  Kd8 {[%clk 0:00:17]} 33. Qc7+ {[%clk 0:00:09]}  Ke8 {[%clk 0:00:17]} 34. Re2 {[%clk 0:00:06]}  Qd3 {[%clk 0:00:16]} 35. Bd6 {[%clk 0:00:05]}  Qf5 {[%clk 0:00:16]} 36. Qc8+ {[%clk 0:00:05]}  Kf7 {[%clk 0:00:16]} 37. e4 {[%clk 0:00:04]}  Qh3 {[%clk 0:00:16]} 38. e5 {[%clk 0:00:04]}  Rf1+ {[%clk 0:00:16]} 39. Ke3 {[%clk 0:00:04]}  Rxf3+ {[%clk 0:00:17]} 40. Kd2 {[%clk 0:00:05]}  Rd3+ {[%clk 0:00:15]} 41. Kc2 {[%clk 0:00:05]}  Rc3+ {[%clk 0:00:12]} 42. Kb2 {[%clk 0:00:05]}  Qe6 {[%clk 0:00:12]} 43. d5 {[%clk 0:00:04]}  cxd5 {[%clk 0:00:12]} 44. Rh2 {[%clk 0:00:04]}  Rxc8 {[%clk 0:00:11]} 45. Rh8 {[%clk 0:00:04]}  Rxh8 {[%clk 0:00:11]} 0-1


[Site "https://www.chess.com"]

[Event "Titled Tuesday Blitz October 04 Early 2022"]
[White "Mitrabha, Guha"]
[Black "Ohanyan, Emin"]
[WhiteFideId "5057000"]
[BlackFideId "13312022"]
[WhiteElo "2526"]
[BlackElo "2302"]
[Result "0-1"]
[Round "03"]
[TimeControl "180+1"]
[Date "2022.10.04"]
[WhiteClock "0:00:13"]
[BlackClock "0:00:02"]

1. Nf3 {[%clk 0:03:00]}  d5 {[%clk 0:02:38]} 2. b3 {[%clk 0:03:00]}  Nf6 {[%clk 0:02:37]} 3. Bb2 {[%clk 0:03:00]}  Bf5 {[%clk 0:02:37]} 4. g3 {[%clk 0:02:59]}  e6 {[%clk 0:02:37]} 5. Bg2 {[%clk 0:03:00]}  Nbd7 {[%clk 0:02:38]} 6. O-O {[%clk 0:03:00]}  Bd6 {[%clk 0:02:38]} 7. d3 {[%clk 0:03:01]}  Bg6 {[%clk 0:02:38]} 8. Nbd2 {[%clk 0:03:01]}  e5 {[%clk 0:02:39]} 9. Nh4 {[%clk 0:03:01]}  c6 {[%clk 0:02:39]} 10. e4 {[%clk 0:03:00]}  O-O {[%clk 0:02:37]} 11. Nxg6 {[%clk 0:02:58]}  hxg6 {[%clk 0:02:38]} 12. exd5 {[%clk 0:02:58]}  cxd5 {[%clk 0:02:37]} 13. c4 {[%clk 0:02:59]}  Nc5 {[%clk 0:02:32]} 14. Qe2 {[%clk 0:02:58]}  d4 {[%clk 0:02:03]} 15. Ba3 {[%clk 0:02:50]}  Nfd7 {[%clk 0:01:57]} 16. Rab1 {[%clk 0:02:33]}  a5 {[%clk 0:01:55]} 17. h4 {[%clk 0:02:28]}  Ra6 {[%clk 0:01:41]} 18. Bd5 {[%clk 0:02:18]}  Qc7 {[%clk 0:01:14]} 19. Kg2 {[%clk 0:02:16]}  Nf6 {[%clk 0:01:10]} 20. Bf3 {[%clk 0:02:15]}  Re8 {[%clk 0:01:06]} 21. Bxc5 {[%clk 0:02:11]}  Bxc5 {[%clk 0:01:05]} 22. Rh1 {[%clk 0:02:11]}  Bb4 {[%clk 0:01:04]} 23. Ne4 {[%clk 0:02:10]}  Nxe4 {[%clk 0:01:03]} 24. Bxe4 {[%clk 0:02:10]}  f5 {[%clk 0:01:03]} 25. Bd5+ {[%clk 0:02:09]}  Kf8 {[%clk 0:01:02]} 26. h5 {[%clk 0:02:04]}  g5 {[%clk 0:01:03]} 27. Qf3 {[%clk 0:02:04]}  Rf6 {[%clk 0:01:00]} 28. Qe2 {[%clk 0:01:53]}  e4 {[%clk 0:00:37]} 29. dxe4 {[%clk 0:01:48]}  f4 {[%clk 0:00:37]} 30. Qg4 {[%clk 0:01:40]}  Qe5 {[%clk 0:00:24]} 31. Rbd1 {[%clk 0:01:34]}  Bc5 {[%clk 0:00:19]} 32. Rd3 {[%clk 0:01:34]}  Ke7 {[%clk 0:00:16]} 33. Rg1 {[%clk 0:01:13]}  Ref8 {[%clk 0:00:16]} 34. f3 {[%clk 0:00:52]}  fxg3 {[%clk 0:00:15]} 35. Kf1 {[%clk 0:00:48]}  Rf4 {[%clk 0:00:10]} 36. Qxg3 {[%clk 0:00:48]}  g4 {[%clk 0:00:10]} 37. Ke1 {[%clk 0:00:44]}  Bd6 {[%clk 0:00:05]} 38. Qh4+ {[%clk 0:00:35]}  Kd7 {[%clk 0:00:04]} 39. Rxg4 {[%clk 0:00:32]}  Rxf3 {[%clk 0:00:03]} 40. Rxf3 {[%clk 0:00:30]}  Rxf3 {[%clk 0:00:04]} 41. Rg5 {[%clk 0:00:26]}  Re3+ {[%clk 0:00:04]} 42. Kd1 {[%clk 0:00:26]}  Qf6 {[%clk 0:00:04]} 43. Qg4+ {[%clk 0:00:25]}  Kd8 {[%clk 0:00:04]} 44. Rf5 {[%clk 0:00:24]}  Qh6 {[%clk 0:00:02]} 45. Qg5+ {[%clk 0:00:17]}  Qxg5 {[%clk 0:00:02]} 46. Rxg5 {[%clk 0:00:18]}  Bb4 {[%clk 0:00:03]} 47. Rxg7 {[%clk 0:00:13]}  d3 {[%clk 0:00:03]} 48. Rg1 {[%clk 0:00:13]}  d2 {[%clk 0:00:02]} 0-1


[Site "https://www.chess.com"]

[Event "Titled Tuesday Blitz October 04 Early 2022"]
[White "Nakamura, Hikaru"]
[Black "Csonka, Balazs"]
[WhiteFideId "2016192"]
[BlackFideId "742910"]
[WhiteElo "2909"]
[BlackElo "2404"]
[Result "1-0"]
[Round "03"]
[TimeControl "180+1"]
[Date "2022.10.04"]
[WhiteClock "0:01:41"]
[BlackClock "0:00:09"]

1. g3 {[%clk 0:03:00]}  Nf6 {[%clk 0:02:57]} 2. Bg2 {[%clk 0:03:00]}  d5 {[%clk 0:02:57]} 3. Nf3 {[%clk 0:02:58]}  c5 {[%clk 0:02:51]} 4. O-O {[%clk 0:02:57]}  Nc6 {[%clk 0:02:52]} 5. d4 {[%clk 0:02:57]}  e6 {[%clk 0:02:50]} 6. c4 {[%clk 0:02:55]}  dxc4 {[%clk 0:02:51]} 7. Qa4 {[%clk 0:02:55]}  Bd7 {[%clk 0:02:48]} 8. dxc5 {[%clk 0:02:55]}  Bxc5 {[%clk 0:02:44]} 9. Qxc4 {[%clk 0:02:55]}  Qe7 {[%clk 0:02:43]} 10. Bg5 {[%clk 0:02:54]}  Bb6 {[%clk 0:02:32]} 11. Nc3 {[%clk 0:02:47]}  h6 {[%clk 0:02:23]} 12. Qh4 {[%clk 0:02:33]}  O-O-O {[%clk 0:01:58]} 13. Bxf6 {[%clk 0:02:33]}  Qxf6 {[%clk 0:01:57]} 14. Qxf6 {[%clk 0:02:33]}  gxf6 {[%clk 0:01:58]} 15. Ne4 {[%clk 0:02:34]}  Kc7 {[%clk 0:01:45]} 16. Nxf6 {[%clk 0:02:34]}  Bc8 {[%clk 0:01:46]} 17. e3 {[%clk 0:02:31]}  Bc5 {[%clk 0:01:27]} 18. Rfc1 {[%clk 0:02:25]}  Be7 {[%clk 0:01:26]} 19. Ng4 {[%clk 0:02:09]}  Kb8 {[%clk 0:01:19]} 20. Rxc6 {[%clk 0:02:01]}  bxc6 {[%clk 0:01:20]} 21. Nfe5 {[%clk 0:02:01]}  Bb7 {[%clk 0:00:35]} 22. Nxf7 {[%clk 0:02:01]}  h5 {[%clk 0:00:33]} 23. Nge5 {[%clk 0:01:51]}  Bf6 {[%clk 0:00:31]} 24. Nxd8 {[%clk 0:01:51]}  Rxd8 {[%clk 0:00:28]} 25. Nxc6+ {[%clk 0:01:50]}  Bxc6 {[%clk 0:00:28]} 26. Bxc6 {[%clk 0:01:51]}  Rd2 {[%clk 0:00:26]} 27. h4 {[%clk 0:01:50]}  Rxb2 {[%clk 0:00:21]} 28. Bf3 {[%clk 0:01:47]}  Rxf2 {[%clk 0:00:16]} 29. Kxf2 {[%clk 0:01:40]}  Bxa1 {[%clk 0:00:16]} 30. Bxh5 {[%clk 0:01:41]}  Kc7 {[%clk 0:00:16]} 31. g4 {[%clk 0:01:41]}  Kd6 {[%clk 0:00:14]} 32. g5 {[%clk 0:01:41]}  Ke5 {[%clk 0:00:09]} 33. Bg6 {[%clk 0:01:41]} 1-0


[Site "https://www.chess.com"]

[Event "Titled Tuesday Blitz October 04 Early 2022"]
[White "Rozman, Levy"]
[Black "Le, Tuan Minh"]
[WhiteFideId "2039877"]
[BlackFideId "12401153"]
[WhiteElo "2376"]
[BlackElo "2530"]
[Result "0-1"]
[Round "03"]
[TimeControl "180+1"]
[Date "2022.10.04"]
[WhiteClock "0:00:03"]
[BlackClock "0:00:18"]

1. e4 {[%clk 0:03:00]}  c5 {[%clk 0:03:00]} 2. a3 {[%clk 0:03:01]}  g6 {[%clk 0:02:58]} 3. Nc3 {[%clk 0:03:01]}  Bg7 {[%clk 0:02:56]} 4. Bc4 {[%clk 0:03:02]}  e6 {[%clk 0:02:52]} 5. d3 {[%clk 0:03:02]}  a6 {[%clk 0:02:50]} 6. Ba2 {[%clk 0:03:01]}  Nc6 {[%clk 0:02:50]} 7. h4 {[%clk 0:03:01]}  h6 {[%clk 0:02:50]} 8. h5 {[%clk 0:03:01]}  g5 {[%clk 0:02:50]} 9. f4 {[%clk 0:03:01]}  gxf4 {[%clk 0:02:33]} 10. Bxf4 {[%clk 0:03:01]}  d6 {[%clk 0:02:33]} 11. Nf3 {[%clk 0:02:59]}  Nf6 {[%clk 0:02:21]} 12. Qd2 {[%clk 0:02:54]}  e5 {[%clk 0:02:19]} 13. Bg3 {[%clk 0:02:49]}  Be6 {[%clk 0:02:19]} 14. Nd5 {[%clk 0:02:18]}  Bxd5 {[%clk 0:02:14]} 15. exd5 {[%clk 0:02:18]}  Ne7 {[%clk 0:02:13]} 16. Nh4 {[%clk 0:02:06]}  Qd7 {[%clk 0:02:06]} 17. Qe2 {[%clk 0:01:50]}  Qg4 {[%clk 0:01:59]} 18. Qxg4 {[%clk 0:01:44]}  Nxg4 {[%clk 0:01:59]} 19. Ke2 {[%clk 0:01:44]}  Nf6 {[%clk 0:01:54]} 20. Raf1 {[%clk 0:01:10]}  Nxh5 {[%clk 0:01:54]} 21. Rh3 {[%clk 0:01:08]}  Nf4+ {[%clk 0:01:33]} 22. Bxf4 {[%clk 0:01:07]}  exf4 {[%clk 0:01:34]} 23. b4 {[%clk 0:00:52]}  cxb4 {[%clk 0:01:11]} 24. axb4 {[%clk 0:00:52]}  Be5 {[%clk 0:01:12]} 25. Kd2 {[%clk 0:00:30]}  a5 {[%clk 0:01:07]} 26. b5 {[%clk 0:00:27]}  Rc8 {[%clk 0:01:03]} 27. c4 {[%clk 0:00:23]}  Rg8 {[%clk 0:01:03]} 28. Rf2 {[%clk 0:00:19]}  a4 {[%clk 0:00:58]} 29. Nf3 {[%clk 0:00:18]}  Bg7 {[%clk 0:00:54]} 30. Nh4 {[%clk 0:00:17]}  Bf6 {[%clk 0:00:47]} 31. Nf3 {[%clk 0:00:08]}  Rg6 {[%clk 0:00:42]} 32. Re2 {[%clk 0:00:09]}  Kf8 {[%clk 0:00:42]} 33. d4 {[%clk 0:00:06]}  a3 {[%clk 0:00:34]} 34. Bb1 {[%clk 0:00:06]}  Rxc4 {[%clk 0:00:17]} 35. Bxg6 {[%clk 0:00:05]}  fxg6 {[%clk 0:00:18]} 36. Kd3 {[%clk 0:00:06]}  Ra4 {[%clk 0:00:17]} 37. Ra2 {[%clk 0:00:05]}  Nxd5 {[%clk 0:00:18]} 38. Ke4 {[%clk 0:00:03]} 0-1


[Site "https://www.chess.com"]

[Event "Titled Tuesday Blitz October 04 Early 2022"]
[White "Samunenkov, Ihor"]
[Black "Bluebaum, Matthias"]
[WhiteFideId "14187086"]
[BlackFideId "24651516"]
[WhiteElo "2441"]
[BlackElo "2633"]
[Result "0-1"]
[Round "03"]
[TimeControl "180+1"]
[Date "2022.10.04"]
[WhiteClock "0:00:01"]
[BlackClock "0:00:22"]

1. e4 {[%clk 0:02:56]}  e6 {[%clk 0:03:00]} 2. d4 {[%clk 0:02:55]}  d5 {[%clk 0:03:01]} 3. Nd2 {[%clk 0:02:54]}  c5 {[%clk 0:03:01]} 4. exd5 {[%clk 0:02:54]}  Qxd5 {[%clk 0:03:02]} 5. Ngf3 {[%clk 0:02:53]}  cxd4 {[%clk 0:03:02]} 6. Bc4 {[%clk 0:02:54]}  Qd6 {[%clk 0:03:03]} 7. O-O {[%clk 0:02:49]}  Nf6 {[%clk 0:03:03]} 8. Nb3 {[%clk 0:02:50]}  Nc6 {[%clk 0:03:04]} 9. Nbxd4 {[%clk 0:02:49]}  Nxd4 {[%clk 0:03:04]} 10. Nxd4 {[%clk 0:02:47]}  Be7 {[%clk 0:03:05]} 11. c3 {[%clk 0:02:37]}  O-O {[%clk 0:03:05]} 12. Re1 {[%clk 0:02:14]}  Qc7 {[%clk 0:03:01]} 13. Bf1 {[%clk 0:02:13]}  b6 {[%clk 0:02:59]} 14. g3 {[%clk 0:02:07]}  Bb7 {[%clk 0:02:59]} 15. Bf4 {[%clk 0:02:07]}  Qc8 {[%clk 0:02:22]} 16. Bh3 {[%clk 0:01:58]}  Re8 {[%clk 0:02:11]} 17. Qe2 {[%clk 0:01:41]}  Bf8 {[%clk 0:02:07]} 18. Rad1 {[%clk 0:01:38]}  Qc5 {[%clk 0:01:55]} 19. Qe5 {[%clk 0:01:32]}  Nd5 {[%clk 0:01:50]} 20. Bc1 {[%clk 0:01:10]}  Rad8 {[%clk 0:01:42]} 21. Bg2 {[%clk 0:01:09]}  Qc8 {[%clk 0:01:37]} 22. Qe2 {[%clk 0:01:05]}  Ne7 {[%clk 0:01:30]} 23. Bxb7 {[%clk 0:01:03]}  Qxb7 {[%clk 0:01:31]} 24. Qf3 {[%clk 0:01:03]}  Qxf3 {[%clk 0:01:30]} 25. Nxf3 {[%clk 0:01:04]}  Nc6 {[%clk 0:01:28]} 26. Bg5 {[%clk 0:00:58]}  f6 {[%clk 0:01:10]} 27. Rxd8 {[%clk 0:00:57]}  Nxd8 {[%clk 0:01:11]} 28. Be3 {[%clk 0:00:57]}  e5 {[%clk 0:01:09]} 29. Rd1 {[%clk 0:00:56]}  Nc6 {[%clk 0:01:08]} 30. Rd7 {[%clk 0:00:45]}  Re7 {[%clk 0:01:07]} 31. Rd5 {[%clk 0:00:38]}  Kf7 {[%clk 0:01:06]} 32. c4 {[%clk 0:00:38]}  Ke6 {[%clk 0:01:06]} 33. Kf1 {[%clk 0:00:37]}  Rd7 {[%clk 0:01:06]} 34. Rxd7 {[%clk 0:00:38]}  Kxd7 {[%clk 0:01:07]} 35. Ke2 {[%clk 0:00:38]}  f5 {[%clk 0:01:03]} 36. a3 {[%clk 0:00:33]}  h6 {[%clk 0:00:59]} 37. h4 {[%clk 0:00:32]}  g6 {[%clk 0:00:44]} 38. b4 {[%clk 0:00:32]}  Bg7 {[%clk 0:00:42]} 39. b5 {[%clk 0:00:24]}  Na5 {[%clk 0:00:42]} 40. c5 {[%clk 0:00:25]}  Nc4 {[%clk 0:00:41]} 41. a4 {[%clk 0:00:12]}  Kc7 {[%clk 0:00:25]} 42. cxb6+ {[%clk 0:00:04]}  axb6 {[%clk 0:00:26]} 43. Nd2 {[%clk 0:00:03]}  Nb2 {[%clk 0:00:27]} 44. a5 {[%clk 0:00:04]}  bxa5 {[%clk 0:00:27]} 45. b6+ {[%clk 0:00:03]}  Kb7 {[%clk 0:00:27]} 46. Nb3 {[%clk 0:00:03]}  Nc4 {[%clk 0:00:27]} 47. Kd3 {[%clk 0:00:02]}  Nxe3 {[%clk 0:00:26]} 48. fxe3 {[%clk 0:00:01]}  Kxb6 {[%clk 0:00:26]} 49. e4 {[%clk 0:00:02]}  Kb5 {[%clk 0:00:26]} 50. h5 {[%clk 0:00:01]}  Kb4 {[%clk 0:00:22]} 0-1


[Site "https://www.chess.com"]